bitfinex-derivatives/quotes_BTCF0:USTF0_20241023
["timestamp","ask_amount","ask_price","bid_price","bid_amount"]
[1729706014468,0.075937,65906.0,65905.0,0.02694205]
[1729706014762,0.07594,65904.0,65903.0,0.07594]
[1729706014965,0.18594,65904.0,65903.0,0.07594]
[1729706015663,0.075942,65902.0,65901.0,0.12129924]
[1729706016059,0.075942,65902.0,65901.0,0.075942]
[1729706017768,0.075942,65902.0,65901.0,0.10343298]
[1729706018069,0.185942,65902.0,65901.0,0.10343298]
[1729706025071,0.26979131,65902.0,65901.0,0.10343298]
[1729706025268,0.43649134,65902.0,65901.0,0.10343298]
[1729706025858,0.49098947,65902.0,65901.0,0.10343298]
[1729706026064,0.32428944,65902.0,65901.0,0.10343298]
[1729706026264,0.21428944,65902.0,65901.0,0.10343298]
[1729706026472,0.26979131,65902.0,65901.0,0.10343298]
[1729706026975,0.26979131,65902.0,65885.0,0.3114]
[1729706026976,0.075959,65887.0,65886.0,0.00084]
[1729706027274,0.075959,65887.0,65864.0,0.075985]
[1729706027275,0.075968,65880.0,65865.0,0.4215]
[1729706027580,0.66378739,65887.0,65867.0,0.075982]
[1729706027581,0.13665103,65868.0,65867.0,0.075982]
[1729706027776,0.15181576,65872.0,65871.0,0.075978]
[1729706028071,0.08388307,65872.0,65871.0,0.195978]
[1729706028279,0.13651802,65872.0,65871.0,0.195978]
[1729706028476,0.22040109,65872.0,65871.0,0.195978]
[1729706029077,0.22040109,65872.0,65871.0,0.185978]
[1729706029379,0.6372,65886.0,65871.0,1.351418]
[1729706029380,0.13651802,65879.0,65871.0,1.351418]
[1729706029567,0.15181576,65887.0,65881.0,0.075966]
[1729706029767,0.075956,65890.0,65889.0,0.075957]
[1729706029768,0.15181576,65890.0,65889.0,0.075957]
[1729706029969,0.185952,65894.0,65893.0,0.075952]
[1729706030280,0.30259856,65894.0,65893.0,0.075952]
[1729706030671,0.30259829,65894.0,65893.0,0.075952]
[1729706031870,0.30259829,65894.0,65893.0,0.10284083]
[1729706032067,0.255952,65894.0,65893.0,0.17873643]
[1729706032280,0.21793215,65894.0,65893.0,0.17873643]
[1729706034567,0.21793215,65894.0,65893.0,0.29454491]
[1729706034968,0.21793215,65894.0,65893.0,0.17873643]
[1729706035573,0.21793215,65894.0,65893.0,0.21864933]
[1729706039576,0.67321215,65894.0,65889.0,0.07557427]
[1729706039776,0.67321215,65894.0,65885.0,0.07557427]
[1729706039777,0.36,65890.0,65885.0,0.07557427]
[1729706039981,0.4099,65889.0,65887.0,0.04537045]
[1729706040172,0.075961,65885.0,65882.0,0.02804818]
[1729706040483,0.075967,65881.0,65876.0,0.075972]
[1729706040669,0.18,65883.0,65877.0,0.07597]
[1729706040876,0.075969,65878.0,65877.0,0.07597]
[1729706041174,0.18,65879.0,65875.0,0.04537045]
[1729706041480,0.18,65879.0,65878.0,0.075969]
[1729706041678,0.255968,65879.0,65878.0,0.075969]
[1729706043169,0.18,65882.0,65881.0,0.075965]
[1729706043373,0.4099,65889.0,65881.0,0.075965]
[1729706043374,0.075959,65887.0,65886.0,0.075959]
[1729706043569,0.4099,65889.0,65884.0,0.18]
[1729706043771,0.18,65896.0,65888.0,0.255958]
[1729706043977,0.1168,65899.0,65891.0,0.18]
[1729706044181,0.075946,65899.0,65891.0,0.18]
[1729706044378,0.7084,65900.0,65899.0,0.075945]
[1729706044574,0.075947,65898.0,65895.0,0.07595]
[1729706044779,0.18,65896.0,65895.0,0.07595]
[1729706045885,0.255949,65896.0,65895.0,0.07595]
[1729706046681,0.075951,65894.0,65893.0,0.04537045]
[1729706046985,0.18,65896.0,65893.0,0.12132245]
[1729706047180,0.255949,65896.0,65895.0,0.07595]
[1729706047375,0.29316067,65896.0,65895.0,0.07595]
[1729706049088,0.21721167,65896.0,65888.0,0.02791136]
[1729706049286,0.18,65892.0,65884.0,0.18]
[1729706049590,0.18,65892.0,65891.0,0.075954]
[1729706049783,0.18,65896.0,65888.0,0.18]
[1729706049982,0.11316147,65895.0,65894.0,0.07595]
[1729706051289,0.03721147,65895.0,65894.0,0.07595]
[1729706051679,0.11316147,65895.0,65894.0,0.07595]
[1729706051888,0.03721147,65895.0,65894.0,0.07595]
[1729706052788,0.43615176,65908.0,65907.0,0.075936]
[1729706053091,0.5481804,65908.0,65907.0,0.075936]
[1729706054984,0.464336,65908.0,65907.0,0.075936]
[1729706055377,0.464336,65908.0,65907.0,0.10295689]
[1729706056594,0.07821041,65910.0,65909.0,0.075934]
[1729706058589,0.00227641,65910.0,65909.0,0.075934]
[1729706061099,0.075935,65908.0,65907.0,0.02702089]
[1729706061297,0.255935,65908.0,65907.0,0.12130645]
[1729706062700,0.255935,65908.0,65907.0,0.04537045]
[1729706063400,0.255935,65908.0,65907.0,0.12130645]
[1729706063591,0.075935,65908.0,65907.0,0.12130645]
[1729706065987,0.075935,65908.0,65907.0,0.04537045]
[1729706066303,0.075937,65906.0,65905.0,0.075938]
[1729706066492,0.29314377,65906.0,65905.0,0.075938]
[1729706066693,0.39427336,65906.0,65905.0,0.075938]
[1729706067606,0.39427241,65906.0,65905.0,0.075938]
[1729706067788,0.31833541,65906.0,65905.0,0.075938]
[1729706068194,0.39427241,65906.0,65905.0,0.075938]
[1729706068998,0.31833541,65906.0,65904.0,0.02803363]
[1729706069200,0.13833541,65905.0,65902.0,0.075941]
[1729706069403,0.075949,65899.0,65898.0,0.075946]
[1729706069605,0.26384172,65899.0,65896.0,0.075947]
[1729706069802,0.26384172,65899.0,65890.0,0.075955]
[1729706069803,0.15978872,65898.0,65897.0,0.075948]
[1729706070607,0.075947,65898.0,65897.0,0.075948]
[1729706074910,0.075947,65898.0,65897.0,0.12131845]
[1729706075119,0.075947,65898.0,65897.0,0.075948]
[1729706075426,0.075947,65898.0,65897.0,0.12131845]
[1729706075716,0.075947,65898.0,65897.0,0.075948]
[1729706075918,0.075947,65898.0,65897.0,0.12132081]
[1729706076316,0.2209,65901.0,65897.0,0.075948]
[1729706076516,0.296844,65901.0,65900.0,0.075944]
[1729706077229,0.476844,65901.0,65900.0,0.075944]
[1729706077627,0.69695079,65901.0,65900.0,0.075944]
[1729706077819,0.56069545,65901.0,65900.0,0.075944]
[1729706078122,0.51405455,65901.0,65900.0,0.075944]
[1729706080230,0.43811055,65901.0,65900.0,0.075944]
[1729706080523,0.03721055,65901.0,65900.0,0.075944]
[1729706082120,0.03720777,65901.0,65900.0,0.075944]
[1729706084625,0.075942,65902.0,65901.0,0.075943]
[1729706084830,0.075942,65902.0,65901.0,0.12132597]
[1729706085027,0.18,65906.0,65901.0,0.04538297]
[1729706085322,0.075939,65905.0,65904.0,0.075938]
[1729706086028,0.18,65906.0,65905.0,0.075938]
[1729706087422,0.255937,65906.0,65905.0,0.075938]
[1729706091327,0.075941,65903.0,65902.0,0.04538297]
[1729706091628,0.075943,65901.0,65900.0,0.04538297]
[1729706092029,0.075943,65901.0,65900.0,0.075944]
[1729706092224,0.075943,65901.0,65900.0,0.12132697]
[1729706092627,0.075943,65901.0,65900.0,0.075944]
[1729706092628,0.11315232,65901.0,65900.0,0.075944]
[1729706092827,0.15979167,65901.0,65900.0,0.075944]
[1729706097537,0.075944,65900.0,65899.0,0.02218119]
[1729706097724,0.32688185,65900.0,65899.0,0.075945]
[1729706098131,0.15979267,65900.0,65899.0,0.075945]
[1729706098330,0.26979267,65900.0,65899.0,0.075945]
[1729706100232,0.32429122,65900.0,65899.0,0.075945]
[1729706100434,0.26979267,65900.0,65899.0,0.075945]
[1729706100729,0.295944,65900.0,65899.0,0.11579447]
[1729706100930,0.295944,65900.0,65897.0,0.02237293]
[1729706100931,0.075946,65898.0,65897.0,0.02237293]
[1729706101136,0.075946,65898.0,65897.0,0.1915017]
[1729706101347,0.075948,65897.0,65896.0,0.15165228]
[1729706101526,0.185948,65897.0,65896.0,0.21479235]
[1729706102442,0.14793149,65897.0,65896.0,0.21479235]
[1729706102939,0.14793149,65897.0,65896.0,0.29047744]
[1729706104543,0.25793149,65897.0,65896.0,0.29047744]
[1729706104733,0.25793149,65897.0,65896.0,0.17467665]
[1729706104929,0.25793149,65897.0,65896.0,0.09899156]
[1729706106034,0.25793149,65897.0,65894.0,0.07568509]
[1729706106035,0.07595,65895.0,65894.0,0.07568509]
[1729706106234,0.25793149,65897.0,65890.0,0.07568509]
[1729706106536,0.25793149,65897.0,65888.0,0.07568509]
[1729706106537,0.075957,65889.0,65888.0,0.07568509]
[1729706106729,0.075959,65887.0,65886.0,0.07596]
[1729706108340,0.255959,65887.0,65886.0,0.12133462]
[1729706109139,0.255959,65887.0,65886.0,0.06813158]
[1729706109345,0.07596,65886.0,65882.0,0.06053183]
[1729706109639,0.07596,65886.0,65880.0,0.075967]
[1729706109640,0.075966,65881.0,65880.0,0.075967]
[1729706109843,0.255966,65881.0,65880.0,0.075967]
[1729706110036,0.255966,65881.0,65880.0,0.09832886]
[1729706112339,0.255966,65881.0,65880.0,0.1436441]
[1729706112741,0.075966,65881.0,65880.0,0.1436441]
[1729706112944,0.2195,65882.0,65881.0,0.075966]
[1729706113137,0.4003,65886.0,65881.0,0.18]
[1729706113332,0.4003,65886.0,65885.0,0.075961]
[1729706113840,0.4003,65886.0,65881.0,0.22531524]
[1729706113841,0.18,65888.0,65881.0,0.04531524]
[1729706114032,0.18,65888.0,65887.0,0.075959]
[1729706114443,0.255958,65888.0,65887.0,0.075959]
[1729706118038,0.255958,65888.0,65877.0,0.07597]
[1729706118039,0.18,65888.0,65877.0,0.07597]
[1729706118248,0.075962,65885.0,65884.0,0.075961]
[1729706119453,0.075967,65881.0,65880.0,0.075966]
[1729706119754,0.255967,65881.0,65880.0,0.075966]
[1729706122555,0.075969,65879.0,65878.0,0.075968]
[1729706125249,0.075969,65879.0,65878.0,0.15165309]
[1729706125445,0.075969,65879.0,65878.0,0.17424624]
[1729706125848,0.075969,65879.0,65878.0,0.09856115]
[1729706127752,0.075969,65879.0,65878.0,0.17424624]
[1729706127953,0.075969,65879.0,65878.0,0.29007434]
[1729706128155,0.075969,65879.0,65878.0,0.09856115]
[1729706128352,0.075969,65879.0,65878.0,0.17424624]
[1729706128353,0.185969,65879.0,65878.0,0.17424624]
[1729706128555,0.185969,65879.0,65878.0,0.21438968]
[1729706129957,0.185969,65879.0,65878.0,0.3553733]
[1729706129958,0.11,65879.0,65878.0,0.3553733]
[1729706130758,0.185969,65879.0,65878.0,0.3553733]
[1729706131250,0.185969,65879.0,65878.0,0.21438968]
[1729706131452,0.185969,65879.0,65878.0,0.35537457]
[1729706133657,0.185969,65879.0,65878.0,0.35537064]
[1729706134556,0.11,65888.0,65878.0,0.35537064]
[1729706134557,0.075958,65891.0,65890.0,0.075952]
[1729706134860,0.075958,65891.0,65890.0,0.1917796]
[1729706135060,0.075958,65891.0,65890.0,0.075952]
[1729706135255,0.075958,65891.0,65890.0,0.28255892]
[1729706135961,0.075958,65891.0,65890.0,0.19177485]
[1729706136349,0.075958,65891.0,65890.0,0.33274989]
[1729706137349,0.075958,65891.0,65890.0,0.19177485]
[1729706137552,0.075958,65891.0,65890.0,0.33275162]
[1729706137751,0.075958,65891.0,65890.0,0.19177485]
[1729706137955,0.15982813,65891.0,65890.0,0.075952]
[1729706138152,0.15982813,65891.0,65890.0,0.09919704]
[1729706138353,0.13046967,65891.0,65890.0,0.09919704]
[1729706138549,0.15982793,65891.0,65890.0,0.09919704]
[1729706138950,0.2143396,65891.0,65890.0,0.09919704]
[1729706142366,0.26982793,65891.0,65890.0,0.09919704]
[1729706142663,0.3243396,65891.0,65890.0,0.09919704]
[1729706142966,0.13838136,65891.0,65890.0,0.09919704]
[1729706143157,0.08386993,65891.0,65890.0,0.09919704]
[1729706143672,0.22053289,65891.0,65890.0,0.09919704]
[1729706144368,0.08386993,65891.0,65890.0,0.09919704]
[1729706144869,0.00227718,65895.0,65890.0,0.1390423]
[1729706145064,0.00227718,65895.0,65894.0,0.075951]
[1729706146461,0.11,65899.0,65898.0,0.075946]
[1729706146659,0.075941,65903.0,65902.0,0.075942]
[1729706146864,0.185941,65903.0,65902.0,0.075942]
[1729706147065,0.185941,65903.0,65902.0,0.12126542]
[1729706147370,0.185941,65903.0,65902.0,0.075942]
[1729706147575,0.61282,65907.0,65906.0,0.075937]
[1729706147765,0.4119,65907.0,65906.0,0.075937]
[1729706147969,0.2095,65907.0,65906.0,0.075937]
[1729706148269,0.2095,65907.0,65906.0,0.12120569]
[1729706148469,0.2095,65907.0,65906.0,0.075937]
[1729706149362,0.18,65912.0,65905.0,0.04524738]
[1729706149674,0.18,65912.0,65911.0,0.075931]
[1729706149865,0.25593,65912.0,65911.0,0.075931]
[1729706152874,0.39425766,65912.0,65911.0,0.075931]
[1729706156374,0.39425766,65912.0,65911.0,0.09894533]
[1729706157785,0.13832766,65912.0,65911.0,0.09894533]
[1729706158789,0.08383732,65912.0,65911.0,0.09894533]
[1729706159879,0.00227649,65913.0,65911.0,0.09894533]
[1729706160074,0.00227649,65913.0,65912.0,0.07593]
[1729706167698,0.2006,65918.0,65917.0,0.075925]
[1729706167898,0.41484686,65918.0,65917.0,0.075925]
[1729706170396,0.41484564,65918.0,65917.0,0.075925]
[1729706172908,0.075928,65915.0,65914.0,0.075927]
[1729706173118,0.03720272,65915.0,65914.0,0.075927]
[1729706173409,0.0838338,65915.0,65914.0,0.075927]
[1729706173805,0.13832264,65915.0,65914.0,0.075927]
[1729706174206,0.0838338,65915.0,65914.0,0.075927]
[1729706174413,0.0838338,65915.0,65914.0,0.09912294]
[1729706174605,0.1597608,65915.0,65914.0,0.09912294]
[1729706175007,0.075927,65915.0,65914.0,0.09912294]
[1729706177514,0.11,65916.0,65915.0,0.075927]
[1729706177709,0.2006,65918.0,65913.0,0.11]
[1729706178012,0.276524,65918.0,65917.0,0.075925]
[1729706179617,0.276524,65918.0,65913.0,0.13289855]
[1729706179808,0.11,65914.0,65913.0,0.02289855]
[1729706180008,0.075932,65911.0,65910.0,0.075932]
[1729706180212,0.185932,65911.0,65910.0,0.075932]
[1729706181315,0.185931,65911.0,65910.0,0.075932]
[1729706182015,0.075937,65906.0,65904.0,0.09878988]
[1729706182212,0.282038,65905.0,65904.0,0.09878988]
[1729706182417,0.490538,65905.0,65904.0,0.02285088]
[1729706182609,0.075949,65896.0,65893.0,0.06043528]
[1729706182811,0.11,65894.0,65893.0,0.075952]
[1729706183118,0.11,65894.0,65890.0,0.075955]
[1729706183119,0.075955,65891.0,65890.0,0.075955]
[1729706183308,0.185955,65891.0,65890.0,0.075955]
[1729706183907,0.185955,65891.0,65880.0,0.0453324]
[1729706184118,0.075959,65888.0,65885.0,0.075961]
[1729706184314,0.075959,65887.0,65885.0,0.075961]
[1729706184509,0.2085,65892.0,65885.0,0.075961]
[1729706184510,0.11,65886.0,65885.0,0.075961]
[1729706186118,0.18596,65886.0,65885.0,0.075961]
[1729706186307,0.25596,65886.0,65885.0,0.075961]
[1729706187216,0.25596,65886.0,65882.0,0.075965]
[1729706187217,0.075966,65883.0,65882.0,0.075965]
[1729706187416,0.25596,65886.0,65885.0,0.075961]
[1729706188509,0.18,65886.0,65881.0,0.075966]
[1729706188711,0.255965,65882.0,65881.0,0.075966]
[1729706189921,0.255965,65882.0,65881.0,0.09834158]
[1729706191225,0.18,65882.0,65881.0,0.09834158]
[1729706191427,0.255965,65882.0,65881.0,0.09834158]
[1729706191620,0.255965,65882.0,65881.0,0.02237558]
[1729706191823,0.075968,65879.0,65878.0,0.075969]
[1729706192027,0.075972,65876.0,65875.0,0.075973]
[1729706192217,0.255972,65876.0,65875.0,0.075973]
[1729706193018,0.255972,65876.0,65866.0,0.0226491]
[1729706193019,0.075977,65872.0,65871.0,0.075976]
[1729706193325,0.255977,65872.0,65871.0,0.075976]
[1729706195833,0.255977,65872.0,65871.0,0.09881118]
[1729706197930,0.18,65872.0,65871.0,0.09881118]
[1729706198318,0.255976,65872.0,65871.0,0.09881118]
[1729706198831,0.18,65872.0,65871.0,0.09881118]
[1729706199231,0.255976,65872.0,65871.0,0.02283518]
[1729706199430,0.255976,65872.0,65869.0,0.13641428]
[1729706199631,0.18,65872.0,65870.0,0.075978]
[1729706199831,0.255985,65872.0,65871.0,0.075985]
[1729706200732,0.075986,65870.0,65869.0,0.06043528]
[1729706200932,0.075986,65870.0,65869.0,0.09884513]
[1729706201331,0.075986,65870.0,65869.0,0.02285813]
[1729706201629,0.075989,65868.0,65867.0,0.06043528]
[1729706202232,0.075989,65868.0,65867.0,0.13642528]
[1729706202421,0.3854,65869.0,65867.0,0.07599]
[1729706202621,0.461387,65869.0,65868.0,0.06017719]
[1729706202825,0.075989,65868.0,65867.0,0.13616719]
[1729706203024,0.075989,65868.0,65867.0,0.15912754]
[1729706203227,0.075989,65868.0,65867.0,0.09895035]
[1729706205643,0.075989,65868.0,65854.0,0.00076]
[1729706205830,0.075999,65860.0,65859.0,0.075997]
[1729706206932,0.255999,65860.0,65859.0,0.075997]
[1729706208229,0.195999,65860.0,65859.0,0.075997]
[1729706208830,0.195999,65860.0,65801.0,0.16742903]
[1729706208831,0.076008,65853.0,65852.0,0.076006]
[1729706209434,0.285308,65853.0,65852.0,0.076006]
[1729706210238,0.465308,65853.0,65852.0,0.076006]
[1729706211447,0.3893,65853.0,65852.0,0.076006]
[1729706211733,0.076004,65856.0,65852.0,0.076006]
[1729706211734,0.18,65856.0,65852.0,0.076006]
[1729706211939,0.18,65856.0,65855.0,0.076004]
[1729706212129,0.256003,65856.0,65855.0,0.076004]
[1729706212535,0.256003,65856.0,65843.0,0.20283454]
[1729706212536,0.18,65856.0,65843.0,0.20283454]
[1729706212741,0.076012,65848.0,65847.0,0.07601]
[1729706213044,0.076007,65853.0,65847.0,0.33294207]
[1729706213245,0.2098,65852.0,65848.0,0.25693207]
[1729706213440,0.076011,65849.0,65848.0,0.076011]
[1729706213744,0.076011,65849.0,65848.0,0.33294243]
[1729706213935,0.076011,65849.0,65848.0,0.25693143]
[1729706213936,0.256011,65849.0,65848.0,0.25693143]
[1729706214137,0.711611,65849.0,65848.0,0.25693143]
[1729706214440,0.711611,65849.0,65848.0,0.1158826]
[1729706214829,0.711611,65849.0,65848.0,0.20650466]
[1729706215029,0.256011,65849.0,65848.0,0.20650466]
[1729706215943,0.076021,65840.0,65839.0,0.076022]
[1729706216146,0.076021,65840.0,65839.0,0.21710047]
[1729706216343,0.076021,65840.0,65839.0,0.076022]
[1729706216539,0.076021,65840.0,65839.0,0.21710323]
[1729706216946,0.076021,65840.0,65839.0,0.2171019]
[1729706217242,0.256021,65840.0,65839.0,0.076022]
[1729706217442,0.18,65840.0,65839.0,0.076022]
[1729706217650,0.18,65840.0,65839.0,0.21710338]
[1729706217944,0.256021,65840.0,65839.0,0.076022]
[1729706218138,0.21035854,65840.0,65839.0,0.076022]
[1729706219247,0.076021,65840.0,65839.0,0.21623889]
[1729706219840,0.256021,65840.0,65839.0,0.21623889]
[1729706220649,0.256021,65840.0,65839.0,0.14021689]
[1729706220843,0.18,65840.0,65834.0,0.02226952]
[1729706221043,0.2061,65839.0,65838.0,0.076024]
[1729706221344,0.282123,65839.0,65838.0,0.076024]
[1729706222237,0.282123,65839.0,65838.0,0.21618524]
[1729706222439,0.462123,65839.0,65838.0,0.21618524]
[1729706222945,0.462123,65839.0,65838.0,0.076024]
[1729706223252,0.282123,65839.0,65838.0,0.076024]
[1729706224140,0.076027,65836.0,65835.0,0.076026]
[1729706224344,0.256027,65836.0,65835.0,0.21637576]
[1729706224649,0.18,65836.0,65835.0,0.21637576]
[1729706228047,0.2027503,65836.0,65835.0,0.076026]
[1729706229348,0.1267243,65836.0,65835.0,0.076026]
[1729706230845,0.076003,65856.0,65835.0,0.076026]
[1729706231052,0.18,65845.0,65844.0,0.076015]
[1729706231245,0.256016,65845.0,65844.0,0.076015]
[1729706232448,0.076019,65843.0,65841.0,0.07602]
[1729706232659,0.18,65842.0,65841.0,0.07602]
[1729706233151,0.256019,65842.0,65841.0,0.07602]
[1729706234155,0.18,65842.0,65829.0,0.02222906]
[1729706234452,0.18,65830.0,65829.0,0.076034]
[1729706235253,0.076028,65835.0,65834.0,0.076028]
[1729706235454,0.256028,65835.0,65834.0,0.19194131]
[1729706236255,0.256028,65835.0,65834.0,0.076028]
[1729706236648,0.18,65835.0,65834.0,0.076028]
[1729706236846,0.256024,65838.0,65837.0,0.076025]
[1729706237355,0.256024,65838.0,65837.0,0.15166604]
[1729706238351,0.256024,65838.0,65837.0,0.19193895]
[1729706238653,0.256024,65838.0,65837.0,0.26763132]
[1729706239758,0.18,65838.0,65837.0,0.26763132]
[1729706241045,0.18,65838.0,65837.0,0.15171737]
[1729706241354,0.18,65838.0,65837.0,0.19193942]
[1729706242157,0.256024,65838.0,65837.0,0.19193942]
[1729706242453,0.256024,65838.0,65837.0,0.19193904]
[1729706242755,0.18,65838.0,65837.0,0.19193904]
[1729706243155,0.36233132,65838.0,65837.0,0.076025]
[1729706243350,0.22588184,65838.0,65837.0,0.076025]
[1729706243756,0.2258811,65838.0,65837.0,0.076025]
[1729706244654,0.37749163,65838.0,65837.0,0.076025]
[1729706245162,0.45351563,65838.0,65837.0,0.076025]
[1729706245344,0.45351563,65838.0,65834.0,0.09876894]
[1729706245345,0.076027,65835.0,65834.0,0.09876894]
[1729706245548,0.076032,65831.0,65830.0,0.076032]
[1729706245751,0.256032,65831.0,65830.0,0.076032]
[1729706245951,0.26393864,65831.0,65815.0,0.09845102]
[1729706246160,0.076035,65828.0,65827.0,0.076036]
[1729706246659,0.33997364,65828.0,65827.0,0.076036]
[1729706246952,0.33997364,65828.0,65816.0,0.076049]
[1729706246953,0.076043,65822.0,65821.0,0.076043]
[1729706247149,0.26393864,65822.0,65821.0,0.076043]
[1729706247458,0.33998064,65822.0,65821.0,0.076043]
[1729706248553,0.47674966,65822.0,65821.0,0.076043]
[1729706249348,0.33998064,65822.0,65821.0,0.076043]
[1729706249548,0.47671669,65822.0,65821.0,0.09921905]
[1729706249857,0.47671669,65822.0,65821.0,0.02317605]
[1729706249858,0.29328988,65822.0,65821.0,0.02317605]
[1729706250056,0.29328988,65822.0,65810.0,0.2045]
[1729706250255,0.076055,65817.0,65816.0,0.076052]
[1729706250458,0.076055,65817.0,65816.0,0.60241711]
[1729706250459,0.076056,65817.0,65816.0,0.60241711]
[1729706250960,0.076056,65817.0,65816.0,0.49629761]
[1729706251449,0.076056,65817.0,65816.0,0.60237878]
[1729706251652,0.256056,65817.0,65816.0,0.60237878]
[1729706251855,0.18,65817.0,65816.0,0.33280494]
[1729706253162,0.18,65817.0,65816.0,0.44875524]
[1729706253359,0.18,65817.0,65816.0,0.1920023]
[1729706253751,0.256055,65817.0,65816.0,0.28287453]
[1729706253954,0.256055,65817.0,65816.0,0.1920023]
[1729706254366,0.256055,65817.0,65816.0,0.28287118]
[1729706254663,0.256055,65817.0,65816.0,0.1920023]
[1729706255758,0.18,65817.0,65816.0,0.1920023]
[1729706255959,0.25605,65817.0,65816.0,0.1920023]
[1729706257063,0.25605,65817.0,65816.0,0.26766972]
[1729706257261,0.25605,65817.0,65816.0,0.15171571]
[1729706257464,0.25605,65817.0,65816.0,0.076052]
[1729706258059,0.20275278,65817.0,65816.0,0.076052]
[1729706259468,0.12670278,65817.0,65816.0,0.076052]
[1729706261365,0.20275778,65817.0,65816.0,0.076052]
[1729706263262,0.20275778,65817.0,65810.0,0.0224051]
[1729706263263,0.076061,65814.0,65813.0,0.076059]
[1729706263459,0.076067,65808.0,65806.0,0.076067]
[1729706263764,0.668567,65807.0,65806.0,0.076068]
[1729706265071,0.668567,65807.0,65802.0,0.076071]
[1729706265072,0.076071,65803.0,65802.0,0.076071]
[1729706265374,0.076071,65803.0,65802.0,0.04537494]
[1729706265375,0.47576,65803.0,65802.0,0.04537494]
[1729706265571,0.47576,65803.0,65800.0,0.04537494]
[1729706265765,0.076075,65800.0,65799.0,0.12145094]
[1729706266075,0.076075,65800.0,65795.0,0.06048967]
[1729706266076,0.076075,65800.0,65798.0,0.04537494]
[1729706266270,0.374,65799.0,65798.0,0.04537494]
[1729706266464,0.076077,65798.0,65797.0,0.04537494]
[1729706266665,0.076077,65798.0,65794.0,0.13657167]
[1729706266863,0.18,65795.0,65794.0,0.076082]
[1729706270764,0.29576,65795.0,65794.0,0.076082]
[1729706271970,0.18,65795.0,65794.0,0.12140625]
[1729706272277,0.18,65796.0,65795.0,0.076081]
[1729706273967,0.18,65796.0,65795.0,0.13652095]
[1729706274465,0.18,65796.0,65795.0,0.076081]
[1729706279274,0.18,65799.0,65798.0,0.076077]
[1729706279672,0.18,65802.0,65798.0,0.076077]
[1729706279983,0.18,65802.0,65801.0,0.076074]
[1729706284873,0.18,65802.0,65801.0,0.09834954]
[1729706286678,0.18,65802.0,65801.0,0.076074]
[1729706288379,0.18,65802.0,65801.0,0.19205606]
[1729706289179,0.11552,65805.0,65804.0,0.07607]
[1729706289379,0.29552,65805.0,65804.0,0.19205206]
[1729706289580,0.371589,65805.0,65804.0,0.19205206]
[1729706293688,0.371589,65805.0,65799.0,0.0229396]
[1729706293689,0.47552,65805.0,65799.0,0.0229396]
[1729706293882,0.18,65795.0,65788.0,0.02281453]
[1729706294082,0.256088,65789.0,65788.0,0.076089]
[1729706294277,0.18,65789.0,65788.0,0.14023322]
[1729706294481,0.18,65789.0,65779.0,0.10608117]
[1729706294685,0.18,65789.0,65778.0,0.1998]
[1729706294686,0.076092,65786.0,65783.0,0.076094]
[1729706294886,0.076093,65785.0,65784.0,0.13704993]
[1729706295081,0.256093,65785.0,65784.0,0.13704993]
[1729706295280,0.256093,65785.0,65784.0,0.076093]
[1729706295984,0.256093,65785.0,65778.0,0.22292382]
[1729706295985,0.076096,65782.0,65778.0,0.26847587]
[1729706296189,0.50824,65794.0,65778.0,0.02312382]
[1729706296190,0.18,65781.0,65778.0,0.02312382]
[1729706296390,0.256098,65781.0,65780.0,0.076098]
[1729706298782,0.076103,65779.0,65778.0,0.0761]
[1729706299192,0.076105,65775.0,65774.0,0.076104]
[1729706299393,0.256105,65775.0,65774.0,0.076104]
[1729706300483,0.18,65775.0,65771.0,0.02314924]
[1729706300683,0.18,65772.0,65771.0,0.076108]
[1729706300898,0.256107,65772.0,65771.0,0.076108]
[1729706301595,0.076111,65769.0,65767.0,0.076112]
[1729706301791,0.18,65768.0,65767.0,0.076112]
[1729706302802,0.256112,65768.0,65767.0,0.076112]
[1729706303096,0.076117,65764.0,65763.0,0.076117]
[1729706303295,0.256117,65764.0,65763.0,0.076117]
[1729706304001,0.07612,65761.0,65760.0,0.076121]
[1729706304201,0.43612,65761.0,65760.0,0.076121]
[1729706304601,0.25612,65761.0,65760.0,0.076121]
[1729706305108,0.18,65761.0,65760.0,0.076121]
[1729706305599,0.18,65761.0,65760.0,0.13665882]
[1729706306198,0.18,65761.0,65760.0,0.076121]
[1729706306904,0.1903,65767.0,65764.0,0.076116]
[1729706307090,0.02252959,65771.0,65770.0,0.07611]
[1729706307296,0.256108,65771.0,65770.0,0.07611]
[1729706308304,0.371668,65771.0,65770.0,0.07611]
[1729706308696,0.191668,65771.0,65770.0,0.07611]
[1729706308893,0.371668,65771.0,65770.0,0.07611]
[1729706310792,0.076111,65769.0,65766.0,0.09830354]
[1729706310999,0.18,65767.0,65766.0,0.09830354]
[1729706311904,0.256113,65767.0,65766.0,0.02219054]
[1729706312199,0.256113,65767.0,65750.0,0.57886]
[1729706312200,0.18,65767.0,65763.0,0.076117]
[1729706312405,0.256116,65764.0,65763.0,0.076117]
[1729706313295,0.18,65764.0,65750.0,0.42183559]
[1729706313496,0.18,65754.0,65753.0,0.076129]
[1729706314104,0.18,65757.0,65756.0,0.076126]
[1729706314298,0.18,65760.0,65756.0,0.076126]
[1729706314499,0.3851,65763.0,65759.0,0.076122]
[1729706314698,0.3851,65763.0,65757.0,0.18]
[1729706314699,0.18,65760.0,65750.0,0.02373559]
[1729706314903,0.18,65761.0,65750.0,0.02373559]
[1729706314904,0.18,65751.0,65750.0,0.09910859]
[1729706315707,0.2078,65759.0,65755.0,0.076127]
[1729706316003,0.18,65756.0,65755.0,0.076127]
[1729706317696,0.2078,65759.0,65751.0,0.076132]
[1729706317897,0.2078,65759.0,65750.0,0.09910759]
[1729706317898,0.283922,65759.0,65758.0,0.076123]
[1729706318200,0.463922,65759.0,65758.0,0.076123]
[1729706318702,0.463922,65759.0,65758.0,0.12149172]